bitfinex/quotes_ETHUSD_20250923
["timestamp","ask_amount","ask_price","bid_price","bid_amount"]
[1758592375874,4.94097248,4172.2,4172.1,0.566]
[1758592376083,4.94097248,4172.2,4172.1,2.96287447]
[1758592376397,4.94097248,4172.2,4172.1,0.566]
[1758592376802,4.94097248,4172.2,4172.1,0.4477]
[1758592377211,4.94097248,4172.2,4172.1,0.02]
[1758592377604,4.93997248,4172.2,4172.1,0.02]
[1758592377911,4.93997248,4172.2,4172.1,0.4477]
[1758592378078,0.86297248,4172.2,4172.1,2.84457447]
[1758592378280,4.94197248,4172.2,4172.1,3.25972896]
[1758592378519,4.8090391,4172.2,4172.1,0.31685449]
[1758592378807,4.94213602,4172.2,4172.1,2.84457447]
[1758592379288,6.08646787,4172.2,4172.1,2.96287447]
[1758592379816,2.00746787,4172.2,4172.1,2.96287447]
[1758592379981,0.7300391,4172.2,4172.1,3.535226]
[1758592380181,5.66272627,4172.2,4172.1,3.51125726]
[1758592380392,5.66272627,4172.2,4172.1,3.51525726]
[1758592380971,5.66272627,4172.2,4172.1,2.96925726]
[1758592381186,4.8110391,4172.2,4172.1,0.4517]
[1758592381381,4.8110391,4172.2,4172.1,2.84857447]
[1758592381598,5.66282384,4172.2,4172.1,0.4517]
[1758592381775,4.8110391,4172.2,4172.1,0.024]
[1758592382386,5.66292613,4172.2,4172.1,0.024]
[1758592382585,4.8110391,4172.2,4172.1,2.42087447]
[1758592383098,4.8110391,4172.2,4172.1,0.024]
[1758592383299,5.4890391,4172.2,4172.1,0.024]
[1758592383530,5.62215954,4172.2,4172.1,0.024]
[1758592383702,9.29880633,4172.2,4172.0,0.1]
[1758592384022,6.61315954,4172.1,4172.0,0.1]
[1758592384225,9.01003401,4172.1,4172.0,0.1]
[1758592384423,9.01003401,4172.1,4172.0,0.2192]
[1758592384626,6.61315954,4172.1,4172.0,0.2192]
[1758592384831,6.17025954,4172.1,4172.0,0.2192]
[1758592385124,6.61315954,4172.1,4172.0,0.2192]
[1758592385428,10.55727109,4172.1,4172.0,0.2192]
[1758592386296,11.27788534,4172.1,4172.0,0.2192]
[1758592386522,2.39734008,4171.3,4171.1,0.02]
[1758592386725,10.01415954,4171.2,4171.1,0.02]
[1758592387040,10.69315954,4171.2,4171.1,0.02]
[1758592387195,13.09055117,4171.2,4171.1,0.02]
[1758592387398,10.69315954,4171.2,4171.1,0.02]
[1758592387648,10.25025954,4171.2,4171.1,0.02]
[1758592387926,11.52662462,4171.2,4171.1,0.02]
[1758592388303,10.25025954,4171.2,4171.1,0.02]
[1758592388701,1.58051982,4171.2,4171.1,0.02]
[1758592388915,6.8830391,4171.2,4171.1,0.02]
[1758592389315,0.7300391,4171.2,4171.1,0.02]
[1758592389698,4.8100391,4171.2,4171.1,2.96344911]
[1758592389919,4.8100391,4171.2,4171.1,0.4477]
[1758592390129,4.8100391,4171.2,4171.1,0.02]
[1758592390528,4.8100391,4171.2,4171.1,2.41744911]
[1758592390828,6.66119868,4171.2,4171.1,2.96344911]
[1758592391399,6.66305519,4171.2,4171.1,2.84514911]
[1758592391603,6.66305519,4171.2,4171.1,2.41744911]
[1758592392405,4.08,4171.2,4171.1,3.49954996]
[1758592392605,4.078,4171.2,4171.1,3.49950581]
[1758592393596,4.079,4171.2,4171.1,3.49954996]
[1758592394128,0.87277345,4172.5,4172.0,2.39692871]
[1758592394300,6.88366579,4172.4,4171.9,2.39698072]
[1758592394500,0.73166579,4172.3,4171.5,0.546]
[1758592394746,5.08317817,4172.2,4172.1,2.39687447]
[1758592395031,4.573,4172.2,4171.7,0.546]
[1758592395204,4.573,4172.2,4172.0,2.39689136]
[1758592395398,4.573,4172.2,4171.4,0.1183]
[1758592395598,4.573,4172.2,4171.8,2.39704222]
[1758592396230,4.078,4172.1,4172.0,2.39693192]
[1758592396430,4.078,4172.1,4171.9,2.3969757]
[1758592396729,2.073,4172.2,4172.1,2.39684925]
[1758592396937,6.15,4172.2,4172.1,2.39684925]
[1758592397113,3.0,4172.6,4172.0,0.1192]
[1758592397308,6.88207038,4172.5,4172.0,0.1192]
[1758592397514,0.51046321,4172.4,4171.9,2.39697825]
[1758592397725,0.2493,4172.4,4171.9,2.39697825]
[1758592397925,6.149,4172.3,4171.9,2.39697825]
[1758592398307,6.149,4172.3,4172.2,0.1192]
[1758592400454,6.149,4172.3,4172.2,2.51601702]
[1758592400751,0.7085,4172.7,4172.2,0.1192]
[1758592400955,0.7085,4172.7,4171.0,2.39748342]
[1758592400956,0.63767345,4174.1,4172.3,0.61586759]
[1758592401153,1.143,4174.0,4173.6,2.39595843]
[1758592401352,1.143,4173.9,4173.7,0.02395955]
[1758592401532,4.085,4173.8,4173.3,0.5919]
[1758592401726,4.085,4173.7,4173.4,2.39612785]
[1758592401934,4.085,4173.7,4173.5,2.39607044]
[1758592402133,0.2493,4174.3,4173.5,2.39607044]
[1758592402362,6.158,4174.2,4173.9,2.39578968]
[1758592402565,0.2493,4174.3,4173.5,0.4736]
[1758592402852,0.4687,4174.4,4173.5,0.4736]
[1758592402853,4.084,4174.1,4173.6,2.39600195]
[1758592403053,4.083,4174.0,4173.7,2.39595562]
[1758592403360,4.083,4174.0,4173.8,2.39589446]
[1758592403568,4.083,4174.0,4173.9,2.39584082]
[1758592403721,0.2493,4174.6,4173.9,2.39584082]
[1758592403927,6.154,4174.5,4174.0,0.02395783]
[1758592404231,6.154,4174.4,4173.9,2.39584082]
[1758592404557,2.072,4174.7,4173.7,2.9878077]
[1758592404858,2.072,4174.7,4173.7,0.5919]
[1758592404859,4.083,4174.6,4173.7,0.5919]
[1758592405022,4.083,4174.6,4174.2,2.39561612]
[1758592405355,4.3323,4174.6,4174.2,2.39561612]
[1758592405655,4.3323,4174.6,4173.7,0.5919]
[1758592405859,4.3323,4174.6,4174.2,2.39566068]
[1758592406040,4.3323,4174.6,4173.7,0.5919]
[1758592406245,4.3323,4174.6,4174.3,2.39557095]
[1758592406447,4.3323,4174.6,4174.3,2.39557496]
[1758592406646,4.3323,4174.6,4174.2,2.39566434]
[1758592406847,4.3323,4174.6,4174.3,2.3955877]
[1758592407147,4.3323,4174.6,4173.8,0.29879436]
[1758592407348,4.083,4174.6,4174.2,2.39562169]
[1758592407587,3.718,4174.5,4172.1,2.39685357]
[1758592407792,3.718,4174.5,4172.6,2.39653629]
[1758592408065,2.39607155,4173.5,4172.6,2.39653629]
[1758592408294,9.883,4173.4,4172.6,2.39653629]
[1758592408573,0.2493,4173.3,4172.1,0.4736]
[1758592408737,0.2493,4173.2,4172.2,2.39679912]
[1758592408932,4.093,4173.1,4172.3,2.683797]
[1758592409129,4.093,4173.1,4172.7,2.39651388]
[1758592409330,4.093,4173.1,4172.8,2.39641819]
[1758592409581,4.093,4173.1,4172.6,2.39654658]
[1758592409767,4.3423,4173.1,4172.4,2.39665288]
[1758592409929,4.093,4173.2,4173.0,2.39634198]
[1758592410133,4.3423,4173.2,4172.3,2.39671713]
[1758592410347,4.3423,4173.2,4172.5,2.39663872]
[1758592410553,4.3423,4173.2,4172.5,2.39659604]
[1758592410932,4.3423,4173.2,4173.1,0.1192]
[1758592411132,4.811,4173.2,4173.1,0.1192]
[1758592411634,4.103,4173.2,4173.1,0.1192]
[1758592411828,6.175,4173.2,4173.1,0.1192]
[1758592412089,6.893,4173.2,4173.1,0.1192]
[1758592412433,6.4243,4173.2,4173.1,0.1192]
[1758592412861,6.175,4173.2,4173.1,0.1192]
[1758592413182,6.175,4173.2,4173.1,2.51550011]
[1758592414386,0.2493,4173.8,4173.3,2.39618527]
[1758592414587,6.4223,4173.7,4173.3,2.39618527]
[1758592414789,6.4223,4173.7,4173.2,2.39623633]
[1758592415084,6.4223,4173.7,4172.7,0.4736]
[1758592415085,10.10167912,4173.7,4173.6,0.1192]
[1758592415287,10.10067912,4173.7,4173.6,0.1192]
[1758592415436,10.81867912,4173.7,4173.6,0.1192]
[1758592416473,10.34997912,4173.7,4173.6,0.1192]
[1758592416639,10.81867912,4173.7,4173.6,0.1192]
[1758592418544,11.32850245,4173.7,4173.6,0.1192]
[1758592418880,10.34997912,4173.7,4173.6,0.1192]
[1758592419172,0.63767345,4174.3,4173.6,2.51520544]
[1758592419344,0.001,4175.1,4173.7,2.39595562]
[1758592419345,4.096,4174.2,4173.7,2.39595562]
[1758592419544,4.096,4174.1,4173.9,2.395801]
[1758592419973,4.096,4174.1,4174.0,0.1192]
[1758592420940,5.4308,4174.1,4174.0,0.1192]
[1758592421142,7.82652602,4174.1,4174.0,0.1192]
[1758592421346,11.55823178,4174.1,4174.0,0.1192]
[1758592422376,9.16250576,4174.1,4174.0,0.1192]
[1758592422773,3.73170576,4174.1,4174.0,0.1192]
[1758592422973,9.89970576,4174.1,4174.0,0.1192]
[1758592423175,10.61770576,4174.1,4174.0,0.1192]
[1758592423484,13.01343178,4174.1,4174.0,0.1192]
[1758592423854,3.73170576,4174.1,4174.0,0.1192]
[1758592424165,13.4772997,4174.1,4174.0,0.1192]
[1758592424551,11.08157368,4174.1,4174.0,0.1192]
[1758592424881,13.61035738,4174.1,4174.0,0.1192]
[1758592425663,14.24916746,4174.1,4174.0,0.1192]
[1758592426469,13.61035738,4174.1,4174.0,0.1192]
[1758592427258,14.24940412,4174.1,4174.0,0.1192]
[1758592427485,13.61045098,4174.1,4174.0,0.1192]
[1758592428376,13.61045098,4174.1,4172.5,2.39662292]
[1758592428377,2.39613598,4173.4,4172.5,2.39664469]
[1758592428608,6.89770576,4173.3,4172.5,2.39664469]
[1758592428772,0.73170576,4173.2,4172.4,0.4345]
[1758592428973,4.82770576,4173.1,4172.4,2.83119964]
[1758592429296,0.73170576,4173.0,4172.4,2.83119102]
[1758592429457,6.49230799,4173.1,4172.4,2.83119102]
[1758592429458,4.60617516,4172.9,4172.4,2.83119102]
[1758592429658,4.60617516,4172.8,4172.5,0.4345]
[1758592429857,4.096,4172.8,4172.5,0.4345]
[1758592430270,4.096,4172.8,4172.5,2.83112789]
[1758592430658,4.096,4172.8,4172.6,2.39658502]
[1758592430855,4.096,4172.8,4172.6,0.4345]
[1758592431058,4.096,4172.8,4172.7,0.4345]
[1758592431296,4.096,4172.8,4172.5,2.39663276]
[1758592431489,0.63918561,4173.4,4172.8,2.39646804]
[1758592431790,6.89967492,4173.3,4172.6,2.94938045]
[1758592432089,0.73367492,4173.2,4172.7,2.39651501]
[1758592432297,0.73367492,4173.1,4172.7,2.39651501]
[1758592432495,4.60460515,4173.0,4172.8,2.39646879]
[1758592432793,4.093,4172.9,4172.8,0.29310875]
[1758592432979,4.093,4172.9,4172.8,2.39647239]
[1758592433380,4.093,4172.9,4172.8,2.94927239]
[1758592433580,4.093,4172.9,4172.8,0.5528]
[1758592433795,4.093,4172.9,4172.8,2.94927239]
[1758592433992,4.093,4172.9,4172.5,0.4345]
[1758592434198,4.093,4172.9,4172.1,2.39687116]
[1758592434494,4.093,4172.9,4172.8,2.39647239]
[1758592434884,4.093,4172.9,4172.6,2.39653303]
[1758592435196,0.2436,4172.8,4172.6,0.004]
[1758592435398,0.51173344,4172.7,4172.6,0.004]
[1758592435562,0.63918561,4173.3,4172.6,0.4385]
[1758592435764,7.03342376,4173.2,4172.6,0.004]
[1758592435997,0.73409728,4173.1,4172.6,0.004]
[1758592436177,0.73409728,4173.0,4172.6,0.004]
[1758592436378,6.166,4173.2,4172.6,0.004]
[1758592436379,4.82809728,4172.9,4172.6,0.004]
[1758592436569,0.51188648,4172.8,4172.6,0.004]
[1758592436772,0.51188648,4172.7,4172.6,0.004]
[1758592438270,0.51188648,4172.7,4172.6,0.1232]
[1758592438778,0.51188648,4172.7,4172.6,2.51978725]
[1758592438978,0.63918561,4173.4,4172.6,0.92797872]
[1758592439179,4.82772511,4173.3,4173.0,2.39630096]
[1758592439380,4.82772511,4173.3,4173.0,2.83080096]
[1758592439381,0.73472511,4173.2,4173.0,2.83080096]
[1758592439581,0.73472511,4173.1,4173.0,2.83080096]
[1758592439978,0.73472511,4173.1,4173.0,2.95000096]
[1758592440474,0.51231455,4173.1,4173.0,2.95000096]
[1758592440671,2.072,4173.5,4173.1,2.39629994]
[1758592440975,4.60530575,4173.4,4173.1,2.39629994]
[1758592441172,0.51230575,4173.3,4173.2,2.39624269]
[1758592441368,0.51230575,4173.3,4173.1,2.39629002]
[1758592441580,4.093,4173.4,4173.2,0.1192]
[1758592441781,0.51232035,4173.3,4173.2,0.1192]
[1758592441999,1.41832846,4173.3,4173.2,0.1192]
[1758592442511,4.10101406,4173.3,4173.2,0.1192]
[1758592442673,1.83826595,4173.3,4173.2,0.1192]
[1758592443086,4.10101406,4173.3,4173.2,0.1192]
[1758592443283,4.23442796,4173.3,4173.2,0.1192]
[1758592443645,1.83824269,4173.3,4173.2,0.1192]
[1758592443806,1.55174236,4173.3,4173.2,0.1192]
[1758592443976,1.41832846,4173.3,4173.2,0.1192]
[1758592444600,1.55173129,4173.3,4173.2,0.1192]
[1758592445176,1.41832846,4173.3,4173.2,0.1192]
[1758592446074,4.82472846,4173.3,4173.2,0.1192]
[1758592446279,6.89672846,4173.3,4173.2,0.1192]
[1758592446903,4.82372846,4173.3,4173.2,0.1192]
[1758592447418,4.82372846,4173.3,4173.2,2.51544269]
[1758592447620,4.82372846,4173.3,4173.2,3.06824269]
[1758592447784,0.51232035,4173.3,4173.2,3.06190127]
[1758592448103,4.089,4173.3,4173.2,0.66565858]
[1758592448308,4.089,4173.3,4173.2,0.1192]
[1758592448488,4.089,4173.3,4173.2,2.94994269]
[1758592448690,4.089,4173.3,4173.2,3.06824269]
[1758592449084,2.072,4174.0,4173.2,3.06824269]
[1758592449285,0.7345311,4173.9,4173.1,2.39625147]
[1758592449491,4.60318928,4173.8,4173.7,2.39595562]
[1758592449690,0.51218928,4173.8,4173.7,2.94875562]
[1758592449912,4.09,4173.8,4173.7,3.06795562]
[1758592450719,4.60240454,4173.8,4173.7,3.06795562]
[1758592451025,4.09,4173.8,4173.7,3.06795562]
[1758592451520,4.09,4173.8,4173.7,2.51515562]
[1758592454731,0.001,4173.8,4173.7,3.4960559]
[1758592454931,0.001,4173.8,4173.7,3.6143559]
[1758592455629,0.001,4173.8,4173.7,3.0615559]
[1758592456330,0.001,4173.8,4173.7,0.1192]
[1758592456534,0.2431,4173.8,4173.7,2.51515562]
[1758592456735,0.001,4173.8,4173.7,2.51515562]
[1758592457334,4.089,4173.8,4173.7,2.51515562]
[1758592458543,11.149,4173.8,4173.7,2.51515562]
[1758592460706,11.149,4173.8,4173.7,0.1192]
[1758592461364,11.3911,4173.8,4173.7,0.1192]
[1758592461639,21.87276547,4173.8,4173.7,0.1192]
[1758592462003,21.87276547,4173.8,4172.9,2.39640493]
[1758592462004,2.39619344,4173.3,4172.6,0.004]
[1758592462214,4.59760762,4173.2,4172.6,0.004]
[1758592462454,0.51160762,4173.1,4172.6,0.004]
[1758592462652,0.51160762,4173.0,4172.6,0.004]
[1758592462876,4.59760762,4172.9,4172.6,0.004]
[1758592463093,0.51160762,4172.8,4172.6,0.004]
[1758592463257,0.6963,4172.8,4172.6,0.004]
[1758592463572,0.2421,4172.7,4172.6,0.004]
[1758592463976,4.086,4172.9,4172.6,0.004]
[1758592464179,0.51157885,4172.8,4172.6,0.004]
[1758592464357,4.3281,4172.9,4172.6,0.004]
[1758592464551,0.51154795,4172.8,4172.6,0.004]
[1758592464751,4.3281,4172.9,4172.6,0.004]
[1758592464969,0.51154752,4172.8,4172.6,0.004]
[1758592465190,4.3281,4172.9,4172.6,0.004]
[1758592465392,4.59754723,4172.8,4172.6,0.004]
[1758592465541,4.7823,4172.8,4172.6,0.004]
[1758592465746,0.96577334,4172.7,4172.6,0.004]
[1758592466047,1.20787334,4172.7,4172.6,0.004]
[1758592468292,8.26787334,4172.7,4172.6,0.004]
[1758592472109,8.26787334,4172.7,4172.6,0.1232]
[1758592472680,7.81367334,4172.7,4172.6,0.1232]
[1758592474810,7.57157334,4172.7,4172.6,0.1232]
[1758592475622,7.06,4172.7,4172.6,2.96898725]
[1758592475925,11.137,4172.7,4172.6,3.08728725]
[1758592476723,12.34447371,4172.7,4172.6,0.004]
[1758592477027,11.89027371,4172.7,4172.6,0.004]
[1758592477225,11.137,4172.7,4172.6,0.004]
[1758592477438,11.3791,4172.7,4172.6,0.004]
[1758592478307,11.137,4172.7,4172.6,0.004]
[1758592478692,11.3791,4172.7,4172.6,0.004]
[1758592479316,11.8333,4172.7,4172.6,0.004]
[1758592479518,12.34458058,4172.7,4172.6,0.004]
[1758592482527,0.51128058,4172.7,4172.6,2.96808725]
[1758592482739,0.64136019,4173.8,4172.6,1.13194362]
[1758592482944,4.5904486,4173.7,4173.5,2.39606305]
[1758592483130,4.079,4173.6,4173.5,2.51436305]
[1758592483337,4.079,4173.6,4173.4,2.39611853]
[1758592484062,4.079,4173.6,4173.3,2.39617337]
[1758592484418,0.001,4173.8,4173.3,2.39617337]
[1758592484419,0.001,4173.8,4173.4,2.39612785]
[1758592484665,0.001,4173.8,4173.5,2.39601762]
[1758592484666,4.59181227,4173.7,4173.5,2.39601762]
[1758592484823,0.51181227,4173.6,4173.3,2.39612933]
[1758592485149,4.082,4173.5,4173.4,2.98757301]
[1758592485354,4.082,4173.5,4173.4,2.96361174]
[1758592486119,4.082,4173.5,4173.4,2.84531174]
[1758592486449,0.001,4173.8,4173.7,2.39595562]
[1758592486650,0.001,4173.8,4173.7,2.41991517]
[1758592486826,0.001,4173.8,4173.7,3.06585562]
[1758592489459,0.001,4173.8,4173.7,0.1192]
[1758592489659,1.18713905,4173.8,4173.7,0.1192]
[1758592489853,1.71425296,4173.8,4173.7,0.1192]
[1758592490046,1.93651602,4173.8,4173.7,0.1192]
[1758592490254,4.33241424,4173.8,4173.7,0.1192]
[1758592490451,2.57687621,4173.8,4173.7,0.1192]
[1758592492153,0.96290211,4173.8,4173.7,0.1192]
[1758592492355,0.51313905,4173.8,4173.7,0.1192]
[1758592492865,4.59513905,4173.8,4173.7,0.1192]
[1758592493865,5.26913905,4173.8,4173.7,0.1192]
[1758592495471,4.82263905,4173.8,4173.7,0.1192]
[1758592495674,4.59213905,4173.8,4173.7,0.1192]
[1758592499160,5.26613905,4173.8,4173.7,0.1192]
[1758592499557,6.09646849,4173.8,4173.7,0.1192]
[1758592500057,13.15646849,4173.8,4173.7,0.1192]
[1758592500496,18.77460853,4173.8,4173.7,0.1192]
[1758592500679,19.76019411,4173.8,4173.7,0.1192]
[1758592501060,19.76018419,4173.8,4173.7,0.1192]
[1758592501260,17.36428597,4173.8,4173.7,0.1192]
[1758592501492,13.94637095,4173.8,4173.7,0.1192]
[1758592501669,13.72413905,4173.8,4173.7,0.1192]
[1758592502462,14.39813905,4173.8,4173.7,0.1192]
[1758592502997,13.72513905,4173.8,4173.7,0.1192]
[1758592503569,13.95263905,4173.8,4173.7,0.1192]
[1758592504802,13.72513905,4173.8,4173.7,0.1192]
[1758592505004,7.57313905,4173.8,4173.7,2.51515562]
[1758592505206,11.65313905,4173.8,4173.7,3.06585562]
[1758592505520,7.57313905,4173.8,4173.7,3.06585562]
[1758592505702,11.65313905,4173.8,4173.7,3.06585562]
[1758592506427,11.65313905,4173.8,4173.7,0.1192]
[1758592506590,11.65313905,4173.8,4173.7,2.51515562]
[1758592507627,11.65313905,4173.8,4173.7,0.1192]
[1758592507828,13.49255295,4173.8,4173.7,0.1192]
[1758592508195,16.11095694,4173.8,4173.7,0.1192]
[1758592508895,19.24447096,4173.8,4173.7,0.1192]
[1758592509593,20.09895629,4173.8,4173.7,0.1192]
[1758592509798,20.09898208,4173.8,4173.7,0.1192]
[1758592510326,19.24447096,4173.8,4173.7,0.1192]
[1758592511703,2.39614872,4173.4,4172.6,0.004]
[1758592511921,0.64108441,4173.1,4172.6,0.004]
[1758592512127,5.45272923,4173.0,4172.6,0.004]
[1758592512329,0.73464482,4172.9,4172.6,0.004]
[1758592512506,4.81164482,4172.8,4172.6,0.004]
[1758592512829,0.73464482,4172.7,4172.6,0.004]
[1758592513229,0.73464482,4172.7,4172.6,0.1232]
[1758592513537,0.96214482,4172.7,4172.6,0.1232]
[1758592517206,0.96195916,4172.7,4172.6,0.1232]
[1758592517434,0.73445916,4172.7,4172.6,0.1232]
[1758592519114,7.79445916,4172.7,4172.6,0.1232]
[1758592519314,8.04295916,4172.7,4172.6,0.1232]
[1758592521523,7.79445916,4172.7,4172.6,0.1232]
[1758592522426,8.04295916,4172.7,4172.6,0.1232]
[1758592523028,13.10387623,4172.7,4172.6,0.1232]
[1758592523257,15.46279182,4172.7,4172.6,0.1232]
[1758592523551,16.45080637,4172.7,4172.6,0.1232]
[1758592523750,15.59602715,4172.7,4172.6,0.1232]
[1758592524158,16.87819598,4172.7,4172.6,0.1232]
[1758592524444,17.67019598,4172.7,4172.6,0.004]
[1758592525457,16.38802715,4172.7,4172.6,0.004]
[1758592526348,17.67019598,4172.7,4172.6,0.004]
[1758592526551,16.38802715,4172.7,4172.6,0.004]
[1758592526749,2.39670213,4172.4,4172.3,0.1192]
[1758592526952,2.39670213,4172.4,4172.1,0.004]
[1758592526953,3.18881702,4172.2,4172.1,0.004]
[1758592527154,12.40206422,4172.2,4172.1,0.004]
[1758592527358,11.83591151,4172.2,4172.1,0.004]
[1758592527722,11.83591151,4172.2,4172.1,1e-08]
[1758592527922,13.60605389,4172.2,4172.1,1e-08]
[1758592528756,2.39739163,4171.2,4171.1,0.02]
[1758592528926,12.27385079,4171.2,4171.1,0.02]
[1758592529126,12.52235079,4171.2,4171.1,0.02]
[1758592529531,12.52133547,4171.2,4171.1,0.02]
[1758592529728,14.12326749,4171.2,4171.1,0.02]
[1758592529934,14.58616749,4171.2,4171.1,0.02]
[1758592530345,14.709329,4171.2,4171.1,0.02]
[1758592532347,15.038429,4171.2,4171.1,0.02]
[1758592532530,14.246429,4171.2,4171.1,0.02]
[1758592533223,14.24621569,4171.2,4171.1,0.02]
[1758592533424,14.70911569,4171.2,4171.1,0.02]
[1758592534649,9.87623053,4171.2,4171.1,0.02]
[1758592535041,3.73323053,4171.2,4171.1,0.02]
[1758592535366,12.27174775,4171.2,4171.1,0.1392]
[1758592535730,12.52024775,4171.2,4171.1,0.1392]
[1758592535935,14.55034653,4171.2,4171.1,0.1392]
[1758592537261,14.08744653,4171.2,4171.1,0.1392]
[1758592537612,7.69494653,4171.2,4171.1,0.1392]
[1758592537760,5.80335612,4171.2,4171.1,0.1392]
[1758592537961,4.072,4171.2,4171.1,0.5708]
[1758592538265,4.072,4171.2,4171.1,2.96824911]
[1758592538853,4.072,4171.2,4171.1,3.50483033]
[1758592539169,0.63658081,4172.1,4171.1,1.10738122]
[1758592539335,6.87935353,4172.0,4171.3,2.39729287]
[1758592539535,0.73135353,4171.9,4171.4,0.5508]
[1758592539771,4.80635353,4171.8,4171.5,0.5508]
[1758592539971,0.73135353,4171.7,4171.6,0.5508]
[1758592540266,4.075,4171.8,4171.7,0.5508]
[1758592540457,4.80654937,4171.8,4171.7,0.5508]
[1758592541235,0.73154937,4171.8,4171.7,2.94790429]
[1758592541463,4.074,4171.8,4171.7,3.24509199]
[1758592541666,2.073,4172.4,4171.9,2.39693947]
[1758592541989,7.80482925,4172.3,4172.0,0.57476931]
[1758592542157,0.73182925,4172.2,4172.0,0.02396931]
[1758592542358,4.80582925,4172.1,4172.0,2.42090123]
[1758592542776,4.80582925,4172.1,4172.0,2.97170123]
[1758592543178,4.80582925,4172.1,4172.0,0.57476931]
[1758592543377,4.58444317,4172.1,4172.0,0.57476931]
[1758592543591,4.074,4172.1,4172.0,0.5508]
[1758592544094,4.5844446,4172.1,4172.0,0.5508]
[1758592544293,0.5104446,4172.1,4172.0,3.27222883]
[1758592544588,4.072,4172.1,4172.0,0.87529691]
[1758592544792,4.072,4172.1,4172.0,2.94773192]
[1758592547879,4.072,4172.1,4172.0,3.06693192]
[1758592548606,7.06,4172.6,4172.4,2.39667617]
[1758592548784,4.068,4172.5,4172.4,2.39667617]
[1758592548995,7.06,4172.6,4172.5,2.51584469]
[1758592549309,0.001,4172.7,4172.6,2.39658725]
[1758592549609,0.001,4172.7,4172.6,2.96008725]
[1758592549799,0.001,4172.7,4172.6,0.5635]
[1758592550406,0.001,4172.7,4172.6,2.96008725]
[1758592550921,0.001,4172.7,4172.5,3.00709491]
[1758592551209,0.001,4172.7,4172.6,2.84178725]
[1758592551812,0.001,4172.7,4172.6,0.4452]
[1758592552307,0.001,4172.7,4172.6,2.84178725]
[1758592552513,0.001,4172.7,4172.6,3.43851841]
[1758592553709,0.001,4172.7,4172.6,2.99331841]
[1758592554011,0.001,4172.7,4172.6,3.55681841]
[1758592554991,0.001,4172.7,4172.6,1.04193116]
[1758592555207,0.001,4172.7,4172.5,0.1192]
[1758592555401,0.001,4172.7,4172.5,2.51581334]
[1758592555808,0.001,4172.7,4172.6,2.39658725]
[1758592556112,0.001,4172.7,4172.6,2.84178725]
[1758592558009,0.001,4172.7,4172.6,2.96008725]
[1758592558250,0.001,4172.7,4172.6,3.50768564]
[1758592559143,0.001,4172.7,4172.6,3.38938564]
[1758592560243,0.001,4172.7,4172.6,2.94418564]
[1758592564309,0.001,4172.7,4172.6,2.39658725]
[1758592564511,0.001,4172.7,4172.5,0.1192]
[1758592564710,0.001,4172.7,4172.5,2.51580083]
[1758592565162,4.062,4172.6,4172.5,0.1192]
[1758592565447,4.7752,4172.6,4172.5,0.1192]
[1758592565665,4.3065,4172.6,4172.5,2.39664469]
[1758592565824,0.001,4172.7,4172.5,0.5644]
[1758592566025,0.001,4172.7,4172.6,2.98405312]
[1758592566226,0.001,4172.7,4172.6,3.53404505]
[1758592566957,0.001,4172.7,4172.6,4.32604505]
[1758592567251,0.001,4172.7,4172.6,7.32604505]
[1758592567553,0.001,4173.2,4173.1,3.18830011]
[1758592567712,0.001,4173.2,4173.1,10.27426311]
[1758592567915,0.001,4173.2,4173.1,11.8921176]
[1758592568154,0.001,4173.2,4173.1,7.0381176]
[1758592568358,0.001,4173.2,4173.1,10.9818176]
[1758592568715,0.7142,4173.2,4173.1,3.4746176]
[1758592568914,0.7142,4173.2,4173.1,0.1192]
[1758592569208,0.001,4173.2,4173.1,2.51550011]
[1758592569837,0.001,4173.2,4173.1,2.53946311]
[1758592570531,0.001,4173.2,4173.1,2.51550011]
[1758592571554,0.2455,4173.2,4173.1,0.1192]
[1758592571847,0.7142,4173.2,4173.1,2.51550011]
[1758592572050,0.7142,4173.2,4173.1,0.1192]
[1758592573169,0.7142,4173.2,4173.1,2.51550011]
[1758592573368,0.001,4173.2,4173.1,2.51550011]
[1758592574065,0.001,4173.2,4173.1,3.0090867]
[1758592575162,0.001,4173.2,4173.1,3.4782497]
[1758592575359,0.001,4173.2,4173.1,3.4533867]
[1758592575682,0.001,4173.2,4173.1,1.05798659]
[1758592575819,0.2503,4173.2,4173.1,2.51550011]
[1758592576022,0.001,4173.2,4173.1,2.51550011]
[1758592576522,0.001,4173.2,4173.1,0.1192]
[1758592576750,0.001,4173.2,4173.1,2.51550011]
[1758592577624,0.716,4173.2,4173.1,0.1192]
[1758592577832,1.45078771,4173.2,4173.1,0.1192]
[1758592578837,1.45083842,4173.2,4173.1,0.1192]
[1758592581534,1.2284131,4173.2,4173.1,0.1192]
[1758592581740,1.45098844,4173.2,4173.1,0.1192]
[1758592582950,1.45098844,4173.2,4173.1,2.51550011]
[1758592582951,0.73598844,4173.2,4173.1,2.51550011]
[1758592583283,0.73598844,4173.2,4173.1,0.1192]
[1758592583455,0.73598844,4173.2,4173.1,2.51550011]
[1758592584170,0.73598844,4173.2,4173.1,2.95780011]
[1758592584557,0.73598844,4173.2,4173.1,2.51550011]
[1758592585365,0.73598844,4173.2,4173.1,3.5050511]
[1758592585759,0.5134131,4173.2,4173.1,3.0627511]
[1758592586601,0.5134131,4173.2,4173.1,0.1192]
[1758592586772,2.39637036,4173.0,4172.6,0.004]
[1758592586954,0.64165385,4172.8,4172.6,0.004]
[1758592587159,0.73520958,4172.7,4172.6,0.004]
[1758592587358,1.45020958,4172.7,4172.6,0.004]
[1758592587739,0.73520958,4172.7,4172.6,0.004]
[1758592588874,0.98450958,4172.7,4172.6,0.004]
[1758592589078,0.98450958,4172.7,4172.6,2.40058725]
[1758592589286,0.73520958,4172.7,4172.6,2.88271665]
[1758592589446,0.73520958,4172.7,4172.6,3.32501665]
[1758592589652,0.64265385,4173.2,4172.6,3.32501665]